fUSD/lending_fUSD_20250103
["ID","MTS","AMOUNT","RATE_DAILY","PERIOD"]
[347601876,1735942240318,-500.0,0.00011898,2]
[347601877,1735942240329,-500.0,0.00011898,2]
[347601878,1735942240339,-500.0,0.00011898,2]
[347601879,1735942240348,-500.0,0.00011898,2]
[347601880,1735942240358,-500.0,0.00011898,2]
[347601881,1735942240368,-500.0,0.00011898,2]
[347601882,1735942240378,-604.85,0.00011898,2]
[347601883,1735942240387,-500.0,0.00011898,2]
[347601884,1735942240396,-500.0,0.00011898,2]
[347601885,1735942240407,-500.0,0.00011898,2]
[347601886,1735942240417,-500.0,0.00011898,2]
[347601887,1735942240426,-500.0,0.00011898,2]
[347601888,1735942240435,-500.0,0.00011898,2]
[347601889,1735942240444,-500.0,0.00011898,2]
[347601890,1735942240454,-500.0,0.00011898,2]
[347601891,1735942240463,-500.0,0.00011898,2]
[347601892,1735942240473,-500.0,0.00011898,2]
[347601893,1735942240482,-500.0,0.00011898,2]
[347601894,1735942240491,-500.0,0.00011898,2]
[347601895,1735942240500,-500.0,0.00011898,2]
[347601896,1735942240509,-500.0,0.00011898,2]
[347601897,1735942240519,-500.0,0.00011898,2]
[347601898,1735942240528,-500.0,0.00011898,2]
[347601899,1735942240537,-500.0,0.00011898,2]
[347601900,1735942240547,-500.0,0.00011898,2]
[347601901,1735942240555,-500.0,0.00011898,2]
[347601902,1735942240565,-500.0,0.00011898,2]
[347601903,1735942240574,-500.0,0.00011898,2]
[347601904,1735942240583,-500.0,0.00011898,2]
[347601905,1735942240592,-500.0,0.00011898,2]
[347601906,1735942240601,-500.0,0.00011898,2]
[347601907,1735942240610,-500.0,0.00011898,2]
[347601908,1735942240620,-632.85,0.00011898,2]
[347601909,1735942240630,-500.0,0.00011898,2]
[347601910,1735942240639,-500.0,0.00011898,2]
[347601911,1735942240648,-500.0,0.00011898,2]
[347601912,1735942240658,-500.0,0.00011898,2]
[347601913,1735942240667,-500.0,0.00011898,2]
[347601914,1735942240676,-500.0,0.00011898,2]
[347601915,1735942240690,-500.0,0.00011898,2]
[347601916,1735942240699,-292.7406841,0.00011898,2]
[347601917,1735942240709,-500.0,0.00011898,2]
[347601918,1735942240718,-500.0,0.00011898,2]
[347601920,1735942240728,-500.0,0.00011898,2]
[347601922,1735942240737,-500.0,0.00011898,2]
[347601924,1735942240746,-500.0,0.00011898,2]
[347601925,1735942240755,-500.0,0.00011898,2]
[347601926,1735942240766,-500.0,0.00011898,2]
[347601927,1735942240775,-500.0,0.00011898,2]
[347601928,1735942240786,-500.0,0.00011898,2]
[347601929,1735942240795,-500.0,0.00011898,2]
[347601930,1735942240805,-500.0,0.00011898,2]
[347601931,1735942240815,-500.0,0.00011898,2]
[347601932,1735942240825,-500.0,0.00011898,2]
[347601933,1735942240834,-150.0,0.00011898,2]
[347601934,1735942240844,-500.0,0.00011898,2]
[347601935,1735942240854,-500.0,0.00011898,2]
[347601936,1735942240866,-500.0,0.00011898,2]
[347601937,1735942240875,-585.71,0.00011898,2]
[347601938,1735942240887,-500.0,0.00011898,2]
[347601939,1735942240896,-500.0,0.00011898,2]
[347601940,1735942240907,-500.0,0.00011898,2]
[347601941,1735942240917,-500.0,0.00011898,2]
[347601942,1735942240928,-500.0,0.00011898,2]
[347601943,1735942240937,-500.0,0.00011898,2]
[347601944,1735942240947,-500.0,0.00011898,2]
[347601945,1735942240958,-500.0,0.00011898,2]
[347601946,1735942240967,-500.0,0.00011898,2]
[347601947,1735942240978,-391.2072023,0.00011898,2]
[347601948,1735942241342,-500.0,0.00011897,2]
[347601949,1735942241353,-108.7927977,0.00011898,2]
[347601950,1735942241363,-500.0,0.00011898,2]
[347601951,1735942241373,-500.0,0.00011898,2]
[347601952,1735942241383,-300.0,0.00011898,2]
[347601953,1735942241393,-526.38,0.00011898,2]
[347601954,1735942241402,-500.0,0.00011898,2]
[347601955,1735942241411,-500.0,0.00011898,2]
[347601956,1735942241420,-500.0,0.00011898,2]
[347601957,1735942241431,-189.73375683,0.00011898,2]
[347601958,1735942241441,-500.0,0.00011898,2]
[347601959,1735942241452,-500.0,0.00011898,2]
[347601960,1735942241462,-500.0,0.00011898,2]
[347601961,1735942241472,-500.0,0.00011898,2]
[347601962,1735942241482,-500.0,0.00011898,2]
[347601963,1735942241494,-500.0,0.00011898,2]
[347601964,1735942241503,-500.0,0.00011898,2]
[347601965,1735942241511,-500.0,0.00011898,2]
[347601966,1735942241521,-500.0,0.00011898,2]
[347601967,1735942241532,-500.0,0.00011898,2]
[347601968,1735942241547,-500.0,0.00011898,2]
[347601969,1735942241559,-500.0,0.00011898,2]
[347601970,1735942241570,-500.0,0.00011898,2]
[347601971,1735942241581,-500.0,0.00011898,2]
[347601972,1735942241592,-500.0,0.00011898,2]
[347601973,1735942241602,-500.0,0.00011898,2]
[347601974,1735942241611,-589.05,0.00011898,2]
[347601975,1735942241620,-500.0,0.00011898,2]
[347601976,1735942241629,-500.0,0.00011898,2]
[347601977,1735942241638,-500.0,0.00011898,2]
[347601978,1735942241648,-806.26,0.00011898,2]
[347601979,1735942241656,-1031.68,0.00011898,2]
[347601980,1735942241665,-1122.45,0.00011898,2]
[347601981,1735942241674,-2589.58,0.00011898,2]
[347601982,1735942241686,-798.25,0.00011898,2]
[347601983,1735942241695,-3228.53,0.00011898,2]
[347601984,1735942241704,-500.0,0.00011898,2]
[347601985,1735942241713,-500.0,0.00011898,2]
[347601986,1735942241723,-500.0,0.00011898,2]
[347601987,1735942241732,-1196.9,0.00011898,2]
[347601988,1735942241743,-500.0,0.00011898,2]
[347601989,1735942241752,-1115.01,0.00011898,2]
[347601990,1735942241763,-2331.96,0.00011898,2]
[347601991,1735942241771,-500.0,0.00011898,2]
[347601992,1735942241782,-3180.82,0.00011898,2]
[347601993,1735942241792,-500.0,0.00011898,2]
[347601994,1735942241801,-3799.84,0.00011898,2]
[347601995,1735942241810,-748.49,0.00011898,2]
[347601996,1735942241820,-1319.49,0.00011898,2]
[347601997,1735942241830,-500.0,0.00011898,2]
[347601998,1735942241840,-560.96,0.00011898,2]
[347601999,1735942241852,-510.93,0.00011898,2]
[347602000,1735942241862,-1639.57,0.00011898,2]
[347602001,1735942241871,-500.0,0.00011898,2]
[347602002,1735942241880,-500.0,0.00011898,2]
[347602003,1735942241889,-500.0,0.00011898,2]
[347602004,1735942241899,-500.0,0.00011898,2]
[347602005,1735942241909,-500.0,0.00011898,2]
[347602006,1735942241918,-500.0,0.00011898,2]
[347602007,1735942241927,-500.0,0.00011898,2]
[347602008,1735942241936,-500.0,0.00011898,2]
[347602009,1735942241945,-500.0,0.00011898,2]
[347602010,1735942241955,-1267.21,0.00011899,2]
[347602011,1735942241965,-877.58,0.00011899,2]
[347602012,1735942241974,-1152.94,0.00011899,2]
[347602013,1735942241983,-1000.0,0.00011899,2]
[347602014,1735942241994,-893.11,0.00011899,2]
[347602015,1735942242003,-747.67,0.00011899,2]
[347602016,1735942242012,-1694.23,0.00011899,2]
[347602017,1735942242023,-1374.63,0.00011899,2]
[347602018,1735942242033,-1072.0,0.000119,4]
[347602019,1735942242043,-152.0,0.00011957,4]
[347602020,1735942242052,-4859.97566595,0.0001198,2]
[347602021,1735942242061,-3889.0,0.00011993,2]
[347602022,1735942242070,-150.0,0.00011993,2]
[347602023,1735942242079,-1172.0,0.00011993,2]
[347602024,1735942242088,-1102.0,0.00011993,2]
[347602025,1735942242097,-1986.711,0.00011999,2]
[347602026,1735942242107,-177.178,0.00011999,2]
[347602027,1735942242116,-1000.0,0.00012032,2]
[347602028,1735942242126,-3000.0,0.0001205,2]
[347602029,1735942242136,-500.0,0.00012063,2]
[347602030,1735942242145,-500.0,0.00012063,2]
[347602031,1735942242154,-500.0,0.00012063,2]
[347602032,1735942242163,-500.0,0.00012063,2]
[347602033,1735942242173,-500.0,0.00012063,2]
[347602034,1735942242182,-500.0,0.00012063,2]
[347602035,1735942242191,-500.0,0.00012063,2]
[347602036,1735942242200,-500.0,0.00012063,2]
[347602037,1735942242210,-500.0,0.00012063,2]
[347602038,1735942242219,-500.0,0.00012063,2]
[347602039,1735942242228,-510.75,0.00012063,2]
[347602040,1735942242237,-500.0,0.00012063,2]
[347602041,1735942242247,-500.0,0.00012063,2]
[347602042,1735942242256,-500.0,0.00012063,2]
[347602043,1735942242265,-500.0,0.00012063,2]
[347602044,1735942242276,-600.65814771,0.00012063,2]
[347602045,1735942242287,-527.71,0.00012063,2]
[347602046,1735942242296,-500.0,0.00012063,2]
[347602047,1735942242305,-500.0,0.00012063,2]
[347602048,1735942242315,-500.0,0.00012063,2]
[347602049,1735942242324,-500.0,0.00012063,2]
[347602050,1735942242334,-639.15,0.00012063,2]
[347602051,1735942242343,-500.0,0.00012063,2]
[347602052,1735942242352,-500.0,0.00012063,2]
[347602053,1735942242361,-500.0,0.00012063,2]
[347602054,1735942242371,-500.0,0.00012063,2]
[347602055,1735942242380,-500.0,0.00012063,2]
[347602056,1735942242389,-500.0,0.00012063,2]
[347602057,1735942242399,-500.0,0.00012063,2]
[347602058,1735942242408,-500.0,0.00012063,2]
[347602059,1735942242418,-500.0,0.00012063,2]
[347602060,1735942242427,-500.0,0.00012063,2]
[347602061,1735942242436,-500.0,0.00012063,2]
[347602062,1735942242445,-500.0,0.00012063,2]
[347602063,1735942242455,-500.0,0.00012063,2]
[347602064,1735942242465,-500.0,0.00012063,2]
[347602065,1735942242474,-500.0,0.00012063,2]
[347602066,1735942242483,-500.0,0.00012063,2]
[347602067,1735942242493,-500.0,0.00012063,2]
[347602068,1735942242502,-500.0,0.00012063,2]
[347602069,1735942242512,-185.78704052,0.00012063,2]
[347602070,1735942242534,-314.21295948,0.00012063,2]
[347602071,1735942242543,-500.0,0.00012063,2]
[347602072,1735942242554,-500.0,0.00012063,2]
[347602073,1735942242564,-500.25092334,0.00012063,2]
[347602074,1735942242573,-343.69881513,0.00012063,2]
[347602075,1735942242585,-156.30118487,0.00012063,2]
[347602076,1735942242595,-500.0,0.00012063,2]
[347602077,1735942242604,-500.0,0.00012063,2]
[347602078,1735942242613,-469.09876512,0.00012063,2]
[347602079,1735942242625,-48.75123488,0.00012063,2]
[347602080,1735942242634,-338.41306936,0.00012063,2]
[347602081,1735942242647,-161.58693064,0.00012063,2]
[347602082,1735942242656,-500.0,0.00012063,2]
[347602083,1735942242667,-95.9468693,0.00012063,2]
[347602084,1735942242689,-404.0531307,0.00012063,2]
[347602085,1735942242699,-500.0,0.00012063,2]
[347602086,1735942242708,-625.22,0.00012063,2]
[347602087,1735942242718,-500.0,0.00012063,2]
[347602088,1735942242728,-500.0,0.00012063,2]
[347602089,1735942242739,-500.0,0.00012063,2]
[347602090,1735942242749,-500.0,0.00012063,2]
[347602091,1735942242759,-500.0,0.00012063,2]
[347602092,1735942242769,-500.0,0.00012063,2]
[347602093,1735942242779,-500.0,0.00012063,2]
[347602094,1735942242788,-500.0,0.00012063,2]
[347602095,1735942242798,-500.0,0.00012063,2]
[347602096,1735942242808,-340.65300167,0.00012063,2]
[347602097,1735942242818,-500.0,0.00012063,2]
[347602098,1735942242828,-500.0,0.00012063,2]
[347602099,1735942242838,-517.67399898,0.00012063,2]
[347602100,1735942242848,-500.0,0.00012063,2]
[347602101,1735942242858,-500.72218049,0.00012063,2]
[347602102,1735942242869,-500.0,0.00012063,2]
[347602103,1735942242878,-500.0,0.00012063,2]
[347602104,1735942242889,-500.0,0.00012063,2]
[347602105,1735942242899,-500.0,0.00012063,2]
[347602106,1735942242910,-500.0,0.00012063,2]
[347602107,1735942242921,-500.0,0.00012063,2]
[347602108,1735942242931,-500.0,0.00012063,2]
[347602109,1735942242940,-500.0,0.00012063,2]
[347602110,1735942242950,-500.0,0.00012063,2]
[347602111,1735942242960,-500.0,0.00012063,2]
[347602112,1735942242971,-500.0,0.00012063,2]
[347602113,1735942242982,-561.99,0.00012063,2]
[347602114,1735942242991,-350.90229124,0.00012063,2]
[347602115,1735942243008,-149.09770876,0.00012063,2]
[347602116,1735942243020,-500.0,0.00012063,2]
[347602117,1735942243030,-500.0,0.00012063,2]
[347602118,1735942243039,-500.0,0.00012063,2]
[347602119,1735942243048,-500.0,0.00012063,2]
[347602120,1735942243057,-500.0,0.00012063,2]
[347602121,1735942243067,-631.5,0.00012063,2]
[347602122,1735942243076,-309.52700962,0.00012063,2]
[347602123,1735942243111,-190.47299038,0.00012063,2]
[347602124,1735942243120,-98.15186966,0.00012063,2]
[347602125,1735942243131,-401.84813034,0.00012063,2]
[347602126,1735942243141,-245.34186966,0.00012063,2]
[347602136,1735942243425,-254.65813034,0.00012063,2]
[347602137,1735942243435,-500.0,0.00012063,2]
[347602138,1735942243445,-500.0,0.00012063,2]
[347602139,1735942243454,-500.0,0.00012063,2]
[347602140,1735942243463,-500.0,0.00012063,2]
[347602141,1735942243473,-191.80746674,0.00012063,2]
[347602142,1735942243482,-500.0,0.00012063,2]
[347602143,1735942243492,-500.0,0.00012063,2]
[347602144,1735942243502,-899.31,0.00012063,2]
[347602145,1735942243512,-500.0,0.00012063,2]
[347602146,1735942243521,-500.0,0.00012063,2]
[347602147,1735942243530,-500.0,0.00012063,2]
[347602148,1735942243539,-500.0,0.00012063,2]
[347602149,1735942243550,-500.0,0.00012063,2]
[347602150,1735942243559,-500.42362975,0.00012063,2]
[347602151,1735942243568,-500.0,0.00012063,2]
[347602152,1735942243578,-591.77,0.00012063,2]
[347602153,1735942243587,-500.0,0.00012063,2]
[347602154,1735942243597,-320.01055817,0.00012063,2]
[347602155,1735942243609,-180.1522927,0.00012063,2]
[347602156,1735942243618,-169.6877073,0.00012063,2]
[347602157,1735942243630,-330.3122927,0.00012063,2]
[347602158,1735942243640,-500.0,0.00012063,2]
[347602159,1735942243649,-500.0,0.00012063,2]
[347602160,1735942243658,-464.54187545,0.00012063,2]
[347602161,1735942243668,-173.50583185,0.00012063,2]
[347602162,1735942243684,-326.49416815,0.00012063,2]
[347602163,1735942243694,-394.19544342,0.00012063,2]
[347602164,1735942243703,-500.0,0.00012063,2]
[347602165,1735942243712,-507.39,0.00012063,2]
[347602166,1735942243722,-500.0,0.00012063,2]
[347602167,1735942243733,-567.59924121,0.00012063,2]
[347602168,1735942243742,-500.0,0.00012063,2]
[347602169,1735942243752,-357.092736,0.00012063,2]
[347602171,1735942243763,-500.0,0.00012063,2]
[347602172,1735942243773,-500.0,0.00012063,2]
[347602173,1735942243783,-559.8,0.00012063,2]
[347602174,1735942243793,-500.14453577,0.00012063,2]
[347602175,1735942243804,-500.0,0.00012063,2]
[347602176,1735942243815,-264.855207,0.00012063,2]
[347602177,1735942243825,-262.00098096,0.00012063,2]
[347602178,1735942243836,-505.13,0.00012063,2]
[347602179,1735942243846,-155.490194,0.00012063,2]
[347602180,1735942243856,-500.0,0.00012063,2]
[347602181,1735942243866,-155.733661,0.00012063,2]
[347602182,1735942243876,-2657.19,0.00012063,2]
[347602185,1735942243885,-500.0,0.00012063,2]
[347602188,1735942243895,-500.0,0.00012063,2]
[347602190,1735942243903,-411.65730734,0.00012063,2]
[347602192,1735942243912,-500.0,0.00012063,2]
[347602194,1735942243922,-500.0,0.00012063,2]
[347602196,1735942243931,-526.48,0.00012063,2]
[347602198,1735942243941,-500.0,0.00012063,2]
[347602200,1735942243950,-500.0,0.00012063,2]
[347602202,1735942243959,-500.0,0.00012063,2]
[347602204,1735942243968,-500.0,0.00012063,2]
[347602205,1735942243977,-522.99,0.00012063,2]
[347602206,1735942243987,-500.0,0.00012063,2]
[347602207,1735942243996,-500.0,0.00012063,2]
[347602208,1735942244005,-500.0,0.00012063,2]
[347602209,1735942244015,-500.0,0.00012063,2]
[347602210,1735942244163,-500.0,0.00012063,2]
[347602211,1735942244204,-500.0,0.00012063,2]
[347602212,1735942244215,-283.13628794,0.00012063,2]
[347602213,1735942244235,-216.86371206,0.00012063,2]
[347602214,1735942244245,-500.0,0.00012063,2]
[347602215,1735942244254,-574.13,0.00012063,2]
[347602216,1735942244264,-553.08,0.00012063,2]
[347602217,1735942244274,-1772.85,0.00012063,2]
[347602218,1735942244283,-500.0,0.00012063,2]
[347602219,1735942244293,-500.0,0.00012063,2]
[347602220,1735942244302,-500.0,0.00012063,2]
[347602221,1735942244312,-500.0,0.00012063,2]
[347602222,1735942244322,-500.0,0.00012063,2]
[347602223,1735942244332,-500.0,0.00012063,2]
[347602224,1735942244342,-500.0,0.00012063,2]
[347602225,1735942244351,-500.0,0.00012063,2]
[347602226,1735942244360,-500.0,0.00012063,2]
[347602227,1735942244370,-500.0,0.00012063,2]
[347602228,1735942244384,-500.0,0.00012063,2]
[347602229,1735942244394,-500.0,0.00012063,2]
[347602230,1735942244403,-500.0,0.00012063,2]
[347602231,1735942244412,-500.0,0.00012063,2]
[347602232,1735942244422,-500.0,0.00012063,2]
[347602233,1735942244432,-500.0,0.00012063,2]
[347602234,1735942244441,-500.0,0.00012063,2]
[347602235,1735942244450,-500.0,0.00012063,2]
[347602236,1735942244460,-500.0,0.00012063,2]
[347602237,1735942244470,-500.0,0.00012063,2]
[347602238,1735942244479,-500.0,0.00012063,2]
[347602239,1735942244489,-500.0,0.00012063,2]
[347602240,1735942244498,-87.53685014,0.00012063,2]
[347602241,1735942244510,-269.1099999,0.00012063,2]
[347602242,1735942244653,-11.57531387,0.00012063,2]
[347602243,1735942244666,-131.77783609,0.00012063,2]
[347602244,1735942244675,-152.96854999,0.00012063,2]
[347602245,1735942244691,-341.4048052,0.00012063,2]
[347602246,1735942244700,-500.0,0.00012063,2]
[347602247,1735942244710,-299.3951942,0.00012063,2]
[347602248,1735942244721,-205.804388,0.00012063,2]
[347602249,1735942244731,-500.0,0.00012063,2]
[347602250,1735942244740,-500.17344374,0.00012063,2]
[347602251,1735942244750,-500.0,0.00012063,2]
[347602252,1735942244761,-500.0,0.00012063,2]
[347602253,1735942244771,-500.0,0.00012063,2]
[347602254,1735942244780,-500.0,0.00012063,2]
[347602255,1735942244791,-500.0,0.00012063,2]
[347602256,1735942244800,-500.0,0.00012063,2]
[347602257,1735942244810,-642.73,0.00012063,2]
[347602258,1735942244820,-500.0,0.00012063,2]
[347602259,1735942244830,-500.0,0.00012063,2]
[347602260,1735942244839,-500.0,0.00012063,2]
[347602261,1735942244849,-500.0,0.00012063,2]
[347602262,1735942244858,-500.0,0.00012063,2]
[347602263,1735942244868,-500.0,0.00012063,2]
[347602264,1735942244878,-500.0,0.00012063,2]
[347602265,1735942244887,-500.0,0.00012063,2]
[347602266,1735942244898,-500.0,0.00012063,2]
[347602267,1735942244907,-614.21,0.00012064,2]
[347602268,1735942244917,-500.0,0.00012064,2]
[347602269,1735942244926,-500.0,0.00012064,2]
[347602270,1735942244936,-567.42,0.00012064,2]
[347602271,1735942244947,-500.0,0.00012064,2]
[347602272,1735942244956,-500.0,0.00012064,2]
[347602273,1735942244966,-500.0,0.00012064,2]
[347602274,1735942244975,-500.0,0.00012064,2]
[347602275,1735942244984,-500.0,0.00012064,2]
[347602276,1735942244994,-500.0,0.00012064,2]
[347602277,1735942245003,-503.42,0.00012064,2]
[347602278,1735942245012,-500.0,0.00012064,2]
[347602279,1735942245023,-500.0,0.00012064,2]
[347602280,1735942245033,-500.0,0.00012064,2]
[347602281,1735942245042,-500.0,0.00012064,2]
[347602282,1735942245052,-500.0,0.00012064,2]
[347602283,1735942245061,-500.0,0.00012064,2]
[347602284,1735942245072,-500.0,0.00012064,2]
[347602285,1735942245081,-500.0,0.00012064,2]
[347602286,1735942245090,-500.0,0.00012064,2]
[347602287,1735942245100,-542.72,0.00012064,2]
[347602288,1735942245110,-500.0,0.00012064,2]
[347602289,1735942245119,-602.53,0.00012064,2]
[347602290,1735942245129,-500.0,0.00012064,2]
[347602291,1735942245139,-500.0,0.00012064,2]
[347602292,1735942245148,-500.0,0.00012064,2]
[347602293,1735942245158,-500.0,0.00012064,2]
[347602294,1735942245167,-500.0,0.00012064,2]
[347602295,1735942245177,-500.0,0.00012064,2]
[347602296,1735942245186,-500.0,0.00012064,2]
[347602297,1735942245196,-500.0,0.00012064,2]
[347602298,1735942245205,-500.0,0.00012064,2]
[347602299,1735942245215,-500.0,0.00012064,2]
[347602300,1735942245224,-500.0,0.00012064,2]
[347602301,1735942245233,-591.06,0.00012064,2]
[347602302,1735942245243,-500.0,0.00012064,2]
[347602303,1735942245253,-500.0,0.00012064,2]
[347602304,1735942245262,-500.0,0.00012064,2]
[347602305,1735942245273,-902.3,0.00012064,2]
[347602306,1735942245283,-671.15,0.00012064,2]
[347602307,1735942245292,-500.0,0.00012064,2]
[347602308,1735942245301,-527.11,0.00012064,2]
[347602309,1735942245311,-500.0,0.00012064,2]
[347602310,1735942245321,-879.94,0.00012064,2]
[347602311,1735942245330,-500.0,0.00012064,2]
[347602312,1735942245339,-500.0,0.00012064,2]
[347602313,1735942245349,-500.0,0.00012064,2]
[347602314,1735942245358,-500.0,0.00012064,2]
[347602315,1735942245367,-500.0,0.00012064,2]
[347602316,1735942245377,-500.0,0.00012064,2]
[347602317,1735942245387,-500.0,0.00012064,2]
[347602318,1735942245396,-500.0,0.00012064,2]
[347602319,1735942245406,-574.58,0.00012064,2]
[347602320,1735942245415,-500.0,0.00012064,2]
[347602321,1735942245424,-500.0,0.00012064,2]
[347602322,1735942245434,-500.0,0.00012064,2]
[347602323,1735942245445,-586.55,0.00012064,2]
[347602324,1735942245454,-500.0,0.00012064,2]
[347602325,1735942245464,-500.0,0.00012064,2]
[347602326,1735942245473,-500.0,0.00012064,2]
[347602327,1735942245483,-500.0,0.00012064,2]
[347602328,1735942245492,-500.0,0.00012064,2]
[347602329,1735942245502,-574.0,0.00012064,2]
[347602330,1735942245511,-500.0,0.00012064,2]
[347602331,1735942245520,-500.0,0.00012064,2]
[347602332,1735942245530,-500.0,0.00012064,2]
[347602333,1735942245539,-500.0,0.00012064,2]
[347602334,1735942245549,-525.0,0.00012064,2]
[347602335,1735942245558,-500.0,0.00012064,2]
[347602336,1735942245567,-512.87728437,0.00012064,2]
[347602337,1735942245576,-500.0,0.00012064,2]
[347602338,1735942245585,-500.0,0.00012064,2]
[347602339,1735942245594,-599.86,0.00012064,2]
[347602340,1735942245603,-500.0,0.00012064,2]
[347602341,1735942245613,-500.0,0.00012064,2]
[347602342,1735942245623,-500.0,0.00012064,2]
[347602343,1735942245632,-500.0,0.00012064,2]
[347602344,1735942245641,-500.0,0.00012064,2]
[347602345,1735942245651,-677.77,0.00012064,2]
[347602346,1735942245660,-500.0,0.00012064,2]
[347602347,1735942245670,-500.0,0.00012064,2]
[347602348,1735942245679,-500.0,0.00012064,2]
[347602349,1735942245694,-500.0,0.00012064,2]
[347602350,1735942245703,-610.55,0.00012064,2]
[347602351,1735942245712,-506.92,0.00012064,2]
[347602352,1735942245722,-537.83,0.00012064,2]
[347602353,1735942245733,-730.02,0.00012064,2]
[347602354,1735942245742,-500.0,0.00012064,2]
[347602355,1735942245753,-509.6,0.00012064,2]
[347602356,1735942245765,-500.0,0.00012064,2]
[347602357,1735942245775,-500.0,0.00012064,2]
[347602358,1735942245785,-653.55,0.00012064,2]
[347602359,1735942245795,-500.0,0.00012064,2]
[347602360,1735942245804,-500.0,0.00012064,2]
[347602361,1735942245813,-500.0,0.00012064,2]
[347602362,1735942245823,-578.4,0.00012064,2]
[347602363,1735942245832,-1259.26338689,0.000121,2]
[347602364,1735942245842,-19725.39594776,0.0001217,2]
[347602365,1735942245855,-163.6749412,0.0001217,2]
[347602366,1735942245864,-890.3850593,0.0001217,2]
[347602367,1735942245876,-2230.5,0.0001217,2]
[347602368,1735942245887,-344.265,0.0001217,2]
[347602393,1735942246387,-369.39167294,0.0001217,2]
[347602396,1735942246399,-148876.1267666,0.0001217,2]
[347602400,1735942246459,-5353.0,0.0001217,2]
[347602401,1735942246471,-1984.59500004,0.0001217,2]
[347602404,1735942246535,-163479.58981002,0.0001217,2]
[347602405,1735942246546,-5675.57388188,0.0001217,2]
[347602406,1735942246557,-389944.59562502,0.0001217,2]
[347602407,1735942246568,-500.64456082,0.0001217,2]
[347602408,1735942246627,-163136.56907228,0.0001217,2]
[347602409,1735942309896,1800.0,0.0002,120]
[347602412,1735942720866,500.0,0.0002,120]
[347602417,1735943186381,1800.0,0.0002,120]
[347602422,1735943357140,-264.94062256,9.299e-05,2]
[347602428,1735943431594,-85.85937744,9.299e-05,2]
[347602429,1735943431605,-300.0,9.999e-05,2]
[347602430,1735943431615,-50000.0,0.0001,2]
[347602431,1735943431625,-250.0,0.0001,2]
[347602432,1735943431634,-718.47582458,0.0001,2]
[347602433,1735943431643,-9795.51897814,0.0001,2]
[347602434,1735943431653,-289.71,0.00010137,2]
[347602435,1735943431663,-163.37,0.00010483,2]
[347602436,1735943431673,-1014.65,0.00010705,2]
[347602437,1735943431683,-2174.8,0.00010753,2]
[347602438,1735943431692,-167.05,0.00010783,2]
[347602439,1735943431701,-600.0,0.000109,3]
[347602440,1735943431710,-218.6,0.0001092,2]
[347602441,1735943431719,-1000.0,0.00010929,2]
[347602442,1735943431729,-2239.39,0.00010959,2]
[347602443,1735943431738,-200.0,0.00010972,2]
[347602444,1735943431747,-1928.15010788,0.00010973,2]
[347602445,1735943431756,-200.0,0.00010977,2]
[347602446,1735943431765,-1928.15010788,0.00010978,2]